[Event "The Kvibergspelen 2023"]
[Site "Kviberg Park Hotel & Conference, Krutvagen 2, Gothenburg, Sweden"]
[Date "2023.09.16"]
[Round "6.13"]
[White "Kallen, Jonas"]
[Black "Nygren, Kim"]
[Result "0-1"]
[TimeControl "15 minutes + 5 seconds per move from move one (Round 1 - 4) / 90 minutes + 30 seconds per move from move one (Round 5 - 8)"]
[BlackTitle "CM"]
[WhiteFideId "1712896"]
[BlackFideId "1706136"]
[WhiteElo "2020"]
[BlackElo "2171"]

1. e4 {[%clk 01:30:57]} {[%emt 00:00:03]} e5 {[%clk 01:30:41]} {[%emt
00:00:19]} 2. Nf3 {[%clk 01:31:05]} {[%emt 00:00:21]} Nc6 {[%clk 01:30:08]}
{[%emt 00:01:04]} 3. Bc4 {[%clk 01:30:52]} {[%emt 00:00:43]} Nf6 {[%clk
01:29:47]} {[%emt 00:00:50]} 4. d3 {[%clk 01:30:35]} {[%emt 00:00:48]} Bc5
{[%clk 01:28:34]} {[%emt 00:01:43]} 5. Nc3 {[%clk 01:29:27]} {[%emt 00:01:38]}
h6 {[%clk 01:28:46]} {[%emt 00:00:18]} 6. h3 {[%clk 01:27:35]} {[%emt
00:02:22]} d6 {[%clk 01:26:48]} {[%emt 00:02:28]} 7. Na4 {[%clk 01:24:29]}
{[%emt 00:03:35]} Bb6 {[%clk 01:21:12]} {[%emt 00:06:07]} 8. Nxb6 {[%clk
01:24:14]} {[%emt 00:00:46]} axb6 {[%clk 01:21:37]} {[%emt 00:00:04]} 9. a3
{[%clk 01:23:59]} {[%emt 00:00:47]} O-O {[%clk 01:20:42]} {[%emt 00:01:23]} 10.
O-O {[%clk 01:23:21]} {[%emt 00:01:07]} Be6 {[%clk 01:20:14]} {[%emt 00:00:58]}
11. Bxe6 {[%clk 01:19:56]} {[%emt 00:03:56]} fxe6 {[%clk 01:20:39]} {[%emt
00:00:05]} 12. Qe2 {[%clk 01:19:46]} {[%emt 00:00:41]} Qe8 {[%clk 01:19:11]}
{[%emt 00:01:57]} 13. c3 {[%clk 01:13:36]} {[%emt 00:06:40]} Qh5 {[%clk
01:17:47]} {[%emt 00:01:54]} 14. Re1 {[%clk 01:12:42]} {[%emt 00:01:23]} g5
{[%clk 01:16:59]} {[%emt 00:01:18]} 15. Nh2 {[%clk 01:12:16]} {[%emt 00:00:57]}
Qg6 {[%clk 01:17:19]} {[%emt 00:00:09]} 16. Bd2 {[%clk 01:07:59]} {[%emt
00:04:48]} Rf7 {[%clk 01:16:41]} {[%emt 00:01:08]} 17. Rad1 {[%clk 01:06:15]}
{[%emt 00:02:15]} Raf8 {[%clk 01:14:55]} {[%emt 00:02:15]} 18. f3 {[%clk
01:04:22]} {[%emt 00:02:22]} h5 {[%clk 01:13:20]} {[%emt 00:02:06]} 19. Rf1
{[%clk 01:04:01]} {[%emt 00:00:51]} Ne7 {[%clk 01:08:05]} {[%emt 00:05:43]} 20.
d4 {[%clk 01:01:56]} {[%emt 00:02:35]} Nd7 {[%clk 01:02:13]} {[%emt 00:06:22]}
21. Bc1 {[%clk 00:57:54]} {[%emt 00:04:33]} Qf6 {[%clk 00:59:50]} {[%emt
00:02:52]} 22. dxe5 {[%clk 00:51:54]} {[%emt 00:06:30]} Qxe5 {[%clk 00:51:57]}
{[%emt 00:08:23]} 23. Qe3 {[%clk 00:49:30]} {[%emt 00:02:54]} Rg7 {[%clk
00:51:33]} {[%emt 00:00:54]} 24. Qd4 {[%clk 00:48:51]} {[%emt 00:01:09]} Qb5
{[%clk 00:43:58]} {[%emt 00:08:06]} 25. h4 {[%clk 00:42:19]} {[%emt 00:07:02]}
Nc6 {[%clk 00:35:29]} {[%emt 00:08:59]} 26. Qd3 {[%clk 00:36:26]} {[%emt
00:06:23]} Qxd3 {[%clk 00:35:18]} {[%emt 00:00:41]} 27. Rxd3 {[%clk 00:36:54]}
{[%emt 00:00:03]} Nce5 {[%clk 00:27:07]} {[%emt 00:08:39]} 28. Rdd1 {[%clk
00:36:59]} {[%emt 00:00:25]} g4 {[%clk 00:25:17]} {[%emt 00:02:21]} 29. fxg4
{[%clk 00:33:45]} {[%emt 00:03:45]} Rxf1+ {[%clk 00:23:51]} {[%emt 00:01:55]}
30. Rxf1 {[%clk 00:32:48]} {[%emt 00:01:27]} Nxg4 {[%clk 00:24:01]} {[%emt
00:00:19]} 31. Bg5 {[%clk 00:28:30]} {[%emt 00:04:48]} Nxh2 {[%clk 00:22:02]}
{[%emt 00:02:29]} 32. Kxh2 {[%clk 00:28:09]} {[%emt 00:00:51]} Ne5 {[%clk
00:22:28]} {[%emt 00:00:05]} 33. Kg1 {[%clk 00:26:19]} {[%emt 00:02:20]} Nc4
{[%clk 00:18:41]} {[%emt 00:04:17]} 34. Rf2 {[%clk 00:24:43]} {[%emt 00:02:07]}
Rf7 {[%clk 00:15:44]} {[%emt 00:03:26]} 35. Bc1 {[%clk 00:23:25]} {[%emt
00:01:47]} Ne5 {[%clk 00:13:21]} {[%emt 00:02:54]} 36. Rxf7 {[%clk 00:21:30]}
{[%emt 00:02:26]} Kxf7 {[%clk 00:13:43]} {[%emt 00:00:07]} 37. b3 {[%clk
00:21:08]} {[%emt 00:00:51]} b5 {[%clk 00:13:06]} {[%emt 00:01:08]} 38. Kf1
{[%clk 00:20:03]} {[%emt 00:01:35]} Nd7 {[%clk 00:11:58]} {[%emt 00:01:38]} 39.
Be3 {[%clk 00:15:21]} {[%emt 00:05:11]} Nf6 {[%clk 00:12:03]} {[%emt 00:00:26]}
40. e5 {[%clk 00:15:33]} {[%emt 00:00:18]} Ng4 {[%clk 00:11:49]} {[%emt
00:00:44]} 41. Bf4 {[%clk 00:10:50]} {[%emt 00:05:13]} dxe5 {[%clk 00:11:52]}
{[%emt 00:00:27]} 42. Bg5 {[%clk 00:10:47]} {[%emt 00:00:33]} Kg6 {[%clk
00:09:57]} {[%emt 00:02:25]} 43. Ke2 {[%clk 00:09:50]} {[%emt 00:01:27]} Kf5
{[%clk 00:10:20]} {[%emt 00:00:07]} 44. Kf3 {[%clk 00:07:39]} {[%emt 00:02:40]}
c6 {[%clk 00:06:33]} {[%emt 00:04:18]} 45. Bd8 {[%clk 00:06:31]} {[%emt
00:01:38]} e4+ {[%clk 00:06:36]} {[%emt 00:00:27]} 46. Kg3 {[%clk 00:05:04]}
{[%emt 00:01:57]} Ne3 {[%clk 00:06:46]} {[%emt 00:00:19]} 47. Bg5 {[%clk
00:04:26]} {[%emt 00:01:09]} Nd5 {[%clk 00:06:25]} {[%emt 00:00:51]} 48. Bd2
{[%clk 00:04:34]} {[%emt 00:00:22]} e3 {[%clk 00:06:03]} {[%emt 00:00:52]} 49.
Be1 {[%clk 00:05:02]} {[%emt 00:00:01]} Ke4 {[%clk 00:05:55]} {[%emt 00:00:38]}
50. Kh3 {[%clk 00:03:08]} {[%emt 00:02:25]} Nf4+ {[%clk 00:05:04]} {[%emt
00:01:21]} 51. Kh2 {[%clk 00:02:49]} {[%emt 00:00:49]} Nd3 {[%clk 00:05:01]}
{[%emt 00:00:33]} 0-1

[Event "The Kvibergspelen 2023"]
[Site "Kviberg Park Hotel & Conference, Krutvagen 2, Gothenburg, Sweden"]
[Date "2023.09.16"]
[Round "6.14"]
[White "Frisk, Ellinor"]
[Black "Lundstedt, Peter"]
[Result "1/2-1/2"]
[TimeControl "15 minutes + 5 seconds per move from move one (Round 1 - 4) / 90 minutes + 30 seconds per move from move one (Round 5 - 8)"]
[WhiteTitle "WIM"]
[WhiteFideId "1708481"]
[BlackFideId "1718444"]
[WhiteElo "2166"]
[BlackElo "2099"]

1. c4 {[%clk 01:30:51]} {[%emt 00:00:09]} e6 {[%clk 01:30:54]} {[%emt
00:00:05]} 2. g3 {[%clk 01:31:08]} {[%emt 00:00:14]} d5 {[%clk 01:31:18]}
{[%emt 00:00:05]} 3. Bg2 {[%clk 01:31:33]} {[%emt 00:00:06]} Nf6 {[%clk
01:31:42]} {[%emt 00:00:05]} 4. Nf3 {[%clk 01:31:56]} {[%emt 00:00:07]} Be7
{[%clk 01:32:04]} {[%emt 00:00:09]} 5. O-O {[%clk 01:32:17]} {[%emt 00:00:08]}
O-O {[%clk 01:32:28]} {[%emt 00:00:06]} 6. d4 {[%clk 01:32:40]} {[%emt
00:00:08]} dxc4 {[%clk 01:32:49]} {[%emt 00:00:08]} 7. Qa4 {[%clk 01:32:58]}
{[%emt 00:00:11]} a6 {[%clk 01:32:58]} {[%emt 00:00:22]} 8. Qxc4 {[%emt
00:00:09]} b5 {[%clk 01:33:14]} {[%emt 00:00:09]} 9. Qc2 {[%clk 01:33:37]}
{[%emt 00:00:18]} Bb7 {[%clk 01:33:36]} {[%emt 00:00:08]} 10. Bd2 {[%clk
01:33:58]} {[%emt 00:00:10]} Be4 {[%clk 01:32:31]} {[%emt 00:01:34]} 11. Qc1
{[%clk 01:33:46]} {[%emt 00:00:43]} Qc8 {[%clk 01:31:25]} {[%emt 00:01:35]} 12.
Bg5 {[%clk 01:18:59]} {[%emt 00:15:17]} Nbd7 {[%clk 01:30:05]} {[%emt
00:01:50]} 13. Nbd2 {[%clk 01:08:40]} {[%emt 00:10:49]} Bb7 {[%clk 01:29:46]}
{[%emt 00:00:49]} 14. Ne5 {[%clk 00:59:23]} {[%emt 00:09:47]} Bxg2 {[%clk
01:26:28]} {[%emt 00:03:50]} 15. Kxg2 {[%clk 00:59:36]} {[%emt 00:00:15]} Nxe5
{[%clk 01:18:20]} {[%emt 00:08:39]} 16. dxe5 {[%clk 00:59:53]} {[%emt
00:00:13]} Nd5 {[%clk 01:18:44]} {[%emt 00:00:07]} 17. Bxe7 {[%clk 01:00:10]}
{[%emt 00:00:12]} Nxe7 {[%clk 01:19:08]} {[%emt 00:00:05]} 18. Qc5 {[%clk
00:56:59]} {[%emt 00:03:41]} Rd8 {[%clk 00:55:26]} {[%emt 00:24:12]} 19. Nf3
{[%clk 00:55:00]} {[%emt 00:02:30]} Ng6 {[%clk 00:51:54]} {[%emt 00:04:01]} 20.
Rfd1 {[%clk 00:44:06]} {[%emt 00:11:24]} Qb7 {[%clk 00:46:43]} {[%emt
00:05:41]} 21. Rac1 {[%clk 00:42:19]} {[%emt 00:02:17]} Rxd1 {[%clk 00:47:03]}
{[%emt 00:00:10]} 22. Rxd1 {[%clk 00:42:42]} {[%emt 00:00:07]} Rc8 {[%clk
00:47:20]} {[%emt 00:00:12]} 23. Rc1 {[%clk 00:29:57]} {[%emt 00:13:16]} h6
{[%clk 00:36:50]} {[%emt 00:11:00]} 24. h4 {[%clk 00:26:57]} {[%emt 00:03:30]}
c6 {[%clk 00:20:10]} {[%emt 00:17:10]} 25. Qd6 {[%clk 00:20:56]} {[%emt
00:06:31]} a5 {[%clk 00:16:18]} {[%emt 00:04:22]} 26. Rc5 {[%clk 00:20:21]}
{[%emt 00:01:04]} Nf8 {[%clk 00:16:12]} {[%emt 00:00:37]} 27. Rc1 {[%clk
00:16:59]} {[%emt 00:03:53]} Nd7 {[%clk 00:15:49]} {[%emt 00:00:52]} 28. Rd1
{[%clk 00:16:39]} {[%emt 00:00:51]} Rc7 {[%clk 00:14:10]} {[%emt 00:02:09]} 29.
Qe7 {[%clk 00:15:23]} {[%emt 00:01:45]} Nf8 {[%clk 00:11:02]} {[%emt 00:03:39]}
30. Qc5 {[%clk 00:14:13]} {[%emt 00:01:39]} Nd7 {[%clk 00:11:22]} {[%emt
00:00:10]} 31. Qe3 {[%clk 00:10:08]} {[%emt 00:04:35]} c5 {[%clk 00:11:22]}
{[%emt 00:00:30]} 32. g4 {[%clk 00:10:33]} {[%emt 00:00:05]} c4 {[%clk
00:09:41]} {[%emt 00:02:12]} 33. g5 {[%clk 00:10:33]} {[%emt 00:00:30]} h5
{[%clk 00:08:02]} {[%emt 00:02:08]} 34. g6 {[%clk 00:07:52]} {[%emt 00:03:11]}
Nf8 {[%clk 00:05:29]} {[%emt 00:03:04]} 35. gxf7+ {[%clk 00:06:56]} {[%emt
00:01:26]} Rxf7 {[%clk 00:05:51]} {[%emt 00:00:07]} 36. Kg3 {[%clk 00:06:36]}
{[%emt 00:00:51]} Rd7 {[%clk 00:02:42]} {[%emt 00:03:39]} 37. Rd6 {[%clk
00:06:13]} {[%emt 00:00:52]} Rxd6 {[%clk 00:02:52]} {[%emt 00:00:21]} 38. exd6
{[%clk 00:06:41]} {[%emt 00:00:02]} Qd5 {[%clk 00:03:16]} {[%emt 00:00:05]} 39.
Qb6 {[%clk 00:04:54]} {[%emt 00:02:16]} b4 {[%clk 00:02:54]} {[%emt 00:00:53]}
40. Qc7 {[%clk 00:04:45]} {[%emt 00:00:39]} c3 {[%clk 00:03:01]} {[%emt
00:00:23]} 41. bxc3 {[%clk 00:05:02]} {[%emt 00:00:14]} bxc3 {[%clk 00:03:30]}
42. Ng5 {[%clk 00:04:13]} {[%emt 00:01:20]} Qe5+ {[%clk 00:03:21]} {[%emt
00:00:38]} 43. Kg2 {[%clk 00:04:22]} {[%emt 00:00:22]} Qf6 {[%clk 00:03:33]}
{[%emt 00:00:17]} 44. d7 {[%clk 00:03:49]} {[%emt 00:01:03]} c2 {[%clk
00:03:15]} {[%emt 00:00:48]} 45. Qxc2 {[%clk 00:01:55]} {[%emt 00:02:24]} Nxd7
{[%clk 00:03:41]} {[%emt 00:00:04]} 46. Qh7+ {[%clk 00:01:55]} {[%emt
00:00:30]} Kf8 {[%clk 00:04:08]} {[%emt 00:00:04]} 47. Qxh5 {[%clk 00:02:09]}
{[%emt 00:00:16]} Ke7 {[%clk 00:03:07]} {[%emt 00:01:30]} 48. Ne4 {[%clk
00:02:19]} {[%emt 00:00:20]} Qd4 {[%clk 00:02:06]} {[%emt 00:01:32]} 49. Qg5+
{[%clk 00:02:36]} {[%emt 00:00:12]} Kf7 {[%clk 00:01:53]} {[%emt 00:00:42]} 50.
Qf4+ {[%clk 00:02:42]} {[%emt 00:00:24]} Ke7 {[%clk 00:02:18]} {[%emt
00:00:06]} 51. Kg3 {[%clk 00:02:31]} {[%emt 00:00:42]} a4 {[%clk 00:02:14]}
{[%emt 00:00:34]} 52. h5 {[%clk 00:02:33]} {[%emt 00:00:28]} a3 {[%clk
00:02:06]} {[%emt 00:00:38]} 53. Qg5+ {[%clk 00:02:50]} {[%emt 00:00:12]} Kf7
{[%clk 00:02:13]} {[%emt 00:00:22]} 54. Qg6+ {[%clk 00:03:16]} {[%emt
00:00:05]} Ke7 {[%clk 00:02:20]} {[%emt 00:00:22]} 55. e3 {[%clk 00:02:50]}
{[%emt 00:00:57]} Qe5+ {[%clk 00:02:32]} {[%emt 00:00:18]} 56. f4 {[%clk
00:03:12]} {[%emt 00:00:08]} Qa1 {[%clk 00:02:56]} {[%emt 00:00:06]} 57. Qg5+
{[%clk 00:02:32]} {[%emt 00:01:10]} Kf7 {[%clk 00:03:01]} {[%emt 00:00:25]} 58.
Nd6+ {[%clk 00:02:41]} {[%emt 00:00:21]} Kg8 {[%clk 00:03:22]} {[%emt
00:00:09]} 59. Qd8+ {[%clk 00:02:37]} {[%emt 00:00:34]} Nf8 {[%clk 00:03:26]}
{[%emt 00:00:26]} 60. Qe7 {[%clk 00:02:27]} {[%emt 00:00:39]} Qg1+ {[%clk
00:03:34]} {[%emt 00:00:23]} 61. Kf3 {[%clk 00:02:51]} {[%emt 00:00:05]} Qh1+
{[%clk 00:03:46]} {[%emt 00:00:19]} 62. Kg4 {[%clk 00:02:30]} {[%emt 00:00:50]}
Qg2+ {[%clk 00:03:52]} {[%emt 00:00:25]} 63. Kh4 {[%clk 00:02:58]} {[%emt
00:00:02]} Qh2+ {[%clk 00:04:15]} {[%emt 00:00:07]} 64. Kg4 {[%clk 00:03:25]}
{[%emt 00:00:04]} Qg2+ {[%clk 00:04:41]} {[%emt 00:00:04]} 65. Kh4 {[%clk
00:03:52]} {[%emt 00:00:03]} 1/2-1/2

[Event "The Kvibergspelen 2023"]
[Site "Kviberg Park Hotel & Conference, Krutvagen 2, Gothenburg, Sweden"]
[Date "2023.09.16"]
[Round "6.15"]
[White "Jarlskov, Daniel Tuk Hartso"]
[Black "Ljung, Harald"]
[Result "1/2-1/2"]
[TimeControl "15 minutes + 5 seconds per move from move one (Round 1 - 4) / 90 minutes + 30 seconds per move from move one (Round 5 - 8)"]
[WhiteFideId "1463896"]
[BlackFideId "1738178"]
[WhiteElo "2038"]
[BlackElo "2164"]

1. d4 {[%clk 01:30:35]} {[%emt 00:00:17]} Nf6 {[%clk 01:30:49]} {[%emt
00:00:17]} 2. c4 {[%clk 01:30:58]} {[%emt 00:00:08]} e6 {[%clk 01:30:58]}
{[%emt 00:00:22]} 3. Nf3 {[%clk 01:31:17]} {[%emt 00:00:10]} d5 {[%clk
01:30:47]} {[%emt 00:00:42]} 4. g3 {[%clk 01:31:37]} {[%emt 00:00:09]} Be7
{[%clk 01:31:00]} {[%emt 00:00:16]} 5. Bg2 {[%clk 01:31:57]} {[%emt 00:00:10]}
O-O {[%clk 01:31:25]} {[%emt 00:00:06]} 6. O-O {[%clk 01:32:20]} {[%emt
00:00:04]} c6 {[%clk 01:31:33]} {[%emt 00:00:24]} 7. Nc3 {[%clk 01:32:31]}
{[%emt 00:00:20]} Nbd7 {[%clk 01:28:12]} {[%emt 00:03:50]} 8. b3 {[%clk
01:25:47]} {[%emt 00:07:15]} b6 {[%clk 01:26:13]} {[%emt 00:02:29]} 9. Bb2
{[%clk 01:25:31]} {[%emt 00:00:46]} Bb7 {[%clk 01:26:26]} {[%emt 00:00:16]} 10.
Re1 {[%clk 01:25:51]} {[%emt 00:00:10]} Rc8 {[%clk 01:16:06]} {[%emt 00:10:51]}
11. Ne5 {[%clk 01:16:40]} {[%emt 00:09:40]} Nxe5 {[%clk 01:10:48]} {[%emt
00:05:48]} 12. dxe5 {[%clk 01:16:02]} {[%emt 00:01:08]} Nd7 {[%clk 01:10:55]}
{[%emt 00:00:24]} 13. cxd5 {[%clk 01:15:57]} {[%emt 00:00:35]} cxd5 {[%clk
01:10:22]} {[%emt 00:01:04]} 14. e4 {[%clk 01:15:40]} {[%emt 00:00:45]} Bb4
{[%clk 01:06:02]} {[%emt 00:04:51]} 15. Rc1 {[%clk 01:12:59]} {[%emt 00:03:10]}
dxe4 {[%clk 01:04:22]} {[%emt 00:02:11]} 16. Bxe4 {[%clk 01:11:40]} {[%emt
00:01:48]} Bxe4 {[%clk 01:00:31]} {[%emt 00:04:22]} 17. Rxe4 {[%clk 01:11:17]}
{[%emt 00:00:52]} Bxc3 {[%clk 00:57:07]} {[%emt 00:03:55]} 18. Rxc3 {[%clk
01:11:18]} {[%emt 00:00:28]} Rxc3 {[%clk 00:53:46]} {[%emt 00:03:51]} 19. Bxc3
{[%clk 01:11:45]} {[%emt 00:00:03]} Nc5 {[%clk 00:49:59]} {[%emt 00:04:18]} 20.
Rd4 {[%clk 01:04:03]} {[%emt 00:08:11]} Qc7 {[%clk 00:48:45]} {[%emt 00:01:43]}
21. Qd2 {[%clk 01:04:08]} {[%emt 00:00:26]} h6 {[%clk 00:44:12]} {[%emt
00:05:03]} 22. Bb2 {[%clk 00:58:17]} {[%emt 00:06:21]} Rc8 {[%clk 00:36:41]}
{[%emt 00:08:01]} 23. h4 {[%clk 00:46:21]} {[%emt 00:12:26]} Qb7 {[%clk
00:32:05]} {[%emt 00:05:06]} 24. Ba3 {[%clk 00:42:19]} {[%emt 00:04:33]} Rc7
{[%clk 00:14:52]} {[%emt 00:17:42]} 25. h5 {[%clk 00:28:16]} {[%emt 00:14:32]}
Nd7 {[%clk 00:08:24]} {[%emt 00:06:59]} 26. Bd6 {[%clk 00:14:41]} {[%emt
00:14:05]} Rc8 {[%clk 00:08:25]} {[%emt 00:00:28]} 27. Qe3 {[%clk 00:11:59]}
{[%emt 00:03:12]} b5 {[%clk 00:04:42]} {[%emt 00:04:15]} 28. Rd1 {[%clk
00:07:57]} {[%emt 00:04:32]} Nb6 {[%clk 00:04:13]} {[%emt 00:00:58]} 29. Rc1
{[%clk 00:06:54]} {[%emt 00:01:33]} Rc6 {[%clk 00:03:03]} {[%emt 00:01:40]} 30.
Rc5 {[%clk 00:06:05]} {[%emt 00:01:19]} Nd5 {[%clk 00:02:43]} {[%emt 00:00:50]}
31. Qc1 {[%clk 00:06:00]} {[%emt 00:00:35]} Rxc5 {[%clk 00:03:06]} {[%emt
00:00:08]} 32. Qxc5 {[%clk 00:06:28]} {[%emt 00:00:01]} a6 {[%clk 00:03:16]}
{[%emt 00:00:20]} 33. Kf1 {[%clk 00:06:04]} {[%emt 00:00:55]} Kh7 {[%clk
00:03:04]} {[%emt 00:00:41]} 34. Qc2+ {[%clk 00:06:15]} {[%emt 00:00:19]} Kg8
{[%clk 00:03:23]} {[%emt 00:00:10]} 35. Qc5 {[%clk 00:06:39]} {[%emt 00:00:07]}
Kh7 {[%clk 00:03:45]} {[%emt 00:00:08]} 36. Qc2+ {[%clk 00:04:34]} {[%emt
00:02:35]} Kg8 {[%clk 00:04:08]} {[%emt 00:00:07]} 37. Qc5 {[%clk 00:04:55]}
{[%emt 00:00:10]} 1/2-1/2

[Event "The Kvibergspelen 2023"]
[Site "Kviberg Park Hotel & Conference, Krutvagen 2, Gothenburg, Sweden"]
[Date "2023.09.16"]
[Round "6.16"]
[White "Galvan Cipriani, Viviana"]
[Black "Grahn, Vidar"]
[Result "1-0"]
[TimeControl "15 minutes + 5 seconds per move from move one (Round 1 - 4) / 90 minutes + 30 seconds per move from move one (Round 5 - 8)"]
[WhiteTitle "WFM"]
[WhiteFideId "32041144"]
[BlackFideId "1744780"]
[WhiteElo "2010"]
[BlackElo "2139"]

1. c4 {[%clk 01:21:30]} {[%emt 00:09:30]} c5 {[%clk 01:30:47]} {[%emt
00:00:13]} 2. Nc3 {[%clk 01:21:34]} {[%emt 00:00:27]} Nc6 {[%clk 01:31:14]}
{[%emt 00:00:02]} 3. g3 {[%clk 01:21:31]} {[%emt 00:00:34]} g6 {[%clk
01:31:39]} {[%emt 00:00:04]} 4. Bg2 {[%clk 01:21:54]} {[%emt 00:00:06]} Bg7
{[%clk 01:32:05]} {[%emt 00:00:05]} 5. e3 {[%clk 01:13:36]} {[%emt 00:08:47]}
e5 {[%clk 01:32:19]} {[%emt 00:00:17]} 6. Nge2 {[%clk 01:14:01]} {[%emt
00:00:05]} Nge7 {[%clk 01:31:12]} {[%emt 00:01:37]} 7. b3 {[%clk 01:06:49]}
{[%emt 00:07:43]} d6 {[%clk 01:30:39]} {[%emt 00:01:02]} 8. Bb2 {[%clk
01:07:04]} {[%emt 00:00:15]} O-O {[%clk 01:28:11]} {[%emt 00:02:58]} 9. O-O
{[%clk 01:06:47]} {[%emt 00:00:47]} Bf5 {[%clk 01:25:15]} {[%emt 00:03:27]} 10.
a3 {[%clk 00:56:40]} {[%emt 00:10:37]} a5 {[%clk 01:22:38]} {[%emt 00:03:07]}
11. Ra2 {[%clk 00:56:19]} {[%emt 00:00:51]} Qd7 {[%clk 01:18:29]} {[%emt
00:04:38]} 12. Re1 {[%clk 00:56:38]} {[%emt 00:00:11]} Bg4 {[%clk 01:17:26]}
{[%emt 00:01:32]} 13. Na4 {[%clk 00:55:00]} {[%emt 00:02:08]} Rae8 {[%clk
01:08:29]} {[%emt 00:09:28]} 14. f3 {[%clk 00:55:02]} {[%emt 00:00:28]} Bh3
{[%clk 01:03:39]} {[%emt 00:05:20]} 15. Nb6 {[%clk 00:45:12]} {[%emt 00:10:20]}
Qd8 {[%clk 01:00:35]} {[%emt 00:03:34]} 16. Bxh3 {[%clk 00:42:37]} {[%emt
00:03:04]} Qxb6 {[%clk 01:00:48]} {[%emt 00:00:17]} 17. Nc3 {[%clk 00:42:30]}
{[%emt 00:00:38]} f5 {[%clk 00:59:43]} {[%emt 00:01:34]} 18. Nb5 {[%clk
00:41:17]} {[%emt 00:01:43]} Na7 {[%clk 00:56:40]} {[%emt 00:03:33]} 19. Nxa7
{[%clk 00:38:56]} {[%emt 00:02:51]} Qxa7 {[%clk 00:55:20]} {[%emt 00:01:50]} 20.
f4 {[%clk 00:36:05]} {[%emt 00:03:20]} Nc6 {[%clk 00:48:41]} {[%emt 00:07:10]}
21. Bg2 {[%clk 00:34:57]} {[%emt 00:01:38]} e4 {[%clk 00:44:04]} {[%emt
00:05:08]} 22. d3 {[%clk 00:34:24]} {[%emt 00:01:02]} a4 {[%clk 00:35:09]}
{[%emt 00:09:25]} 23. bxa4 {[%clk 00:29:21]} {[%emt 00:05:33]} exd3 {[%clk
00:29:36]} {[%emt 00:06:03]} 24. Qxd3 {[%clk 00:27:00]} {[%emt 00:02:51]} Qxa4
{[%clk 00:23:18]} {[%emt 00:06:48]} 25. Qxd6 {[%clk 00:21:17]} {[%emt
00:06:14]} Qb3 {[%clk 00:20:39]} {[%emt 00:03:08]} 26. Bd5+ {[%clk 00:19:06]}
{[%emt 00:02:41]} Kh8 {[%clk 00:20:29]} {[%emt 00:00:40]} 27. Bxg7+ {[%clk
00:19:29]} {[%emt 00:00:07]} Kxg7 {[%clk 00:20:55]} {[%emt 00:00:04]} 28. Rae2
{[%clk 00:19:44]} {[%emt 00:00:14]} Qxa3 {[%clk 00:20:30]} {[%emt 00:00:56]} 29.
Rb1 {[%clk 00:19:58]} {[%emt 00:00:16]} Qd3 {[%clk 00:14:33]} {[%emt 00:06:27]}
30. Rxb7+ {[%clk 00:19:59]} {[%emt 00:00:29]} Kh8 {[%clk 00:14:50]} {[%emt
00:00:12]} 31. Rxh7+ {[%clk 00:18:17]} {[%emt 00:02:12]} Kxh7 {[%clk 00:15:10]}
{[%emt 00:00:12]} 32. Bg8+ {[%clk 00:18:41]} {[%emt 00:00:04]} Kxg8 {[%clk
00:14:54]} {[%emt 00:00:47]} 33. Qxd3 {[%clk 00:19:04]} {[%emt 00:00:07]} Rd8
{[%clk 00:14:48]} {[%emt 00:00:35]} 34. Qa3 {[%clk 00:18:52]} {[%emt 00:00:42]}
Rd1+ {[%clk 00:14:12]} {[%emt 00:01:06]} 35. Kg2 {[%clk 00:18:37]} {[%emt
00:00:45]} Re8 {[%clk 00:14:14]} {[%emt 00:00:29]} 36. Qxc5 {[%clk 00:17:37]}
{[%emt 00:01:30]} Nd4 {[%clk 00:14:38]} {[%emt 00:00:06]} 37. Qd5+ {[%clk
00:16:56]} {[%emt 00:01:11]} Kg7 {[%clk 00:14:09]} {[%emt 00:00:59]} 38. Qd7+
{[%clk 00:13:40]} {[%emt 00:03:46]} Kf8 {[%clk 00:14:31]} {[%emt 00:00:07]} 39.
Ra2 {[%clk 00:12:59]} {[%emt 00:01:11]} Nc2 {[%clk 00:14:42]} {[%emt 00:00:20]}
40. Qh7 {[%clk 00:11:51]} {[%emt 00:01:38]} Nxe3+ {[%clk 00:15:00]} {[%emt
00:00:12]} 41. Kh3 {[%clk 00:12:15]} {[%emt 00:00:06]} Re7 {[%clk 00:13:57]}
{[%emt 00:01:33]} 42. Ra8+ {[%clk 00:12:31]} {[%emt 00:00:14]} 1-0